{"text_format":"3","workbook":"xlsx","n_sheets":2,"sheets":["Sākums","Brīvdienu budžeta plānotājs"],"not_rendered":{"defined_names":1},"read":"whole","date_system":"1900"}

{"sheet":"Sākums","index":0,"n_rows":7,"n_cols":2,"rows_kept":7}
[null,"PAR ŠO VEIDNI"]
[null,"Reģistrējiet savas izmaksas, izmantojot šo brīvdienu budžeta plānotāju."]
[null,"Tabulās ievadiet budžetu un radušos faktiskos izdevumus attiecībā uz dažādām pozīcijām."]
[null,"Brīvdienu budžets, faktisko izmaksu kopsumma un starpība tiek aprēķināta automātiski jūsu vietā."]
[null,"Piezīme. "]
[null,"Papildu norādījumi ir sniegti kolonnā A darblapā BRĪVDIENU BUDŽETA PLĀNOTĀJS. Šis teksts ir paslēpts ar nolūku. Lai tekstu noņemtu, atlasiet kolonnu A, pēc tam atlasiet DZĒST. Lai parādītu slēpto tekstu, atlasiet kolonnu A, pēc tam nomainiet fonta krāsu."]
[null,"Lai iegūtu papildinformāciju par tabulām, nospiediet taustiņu SHIFT un pēc tam F10 tabulā, atlasiet opciju TABULA un pēc tam atlasiet ALTERNATĪVAIS TEKSTS."]

{"sheet":"Brīvdienu budžeta plānotājs","index":1,"n_rows":32,"n_cols":12,"rows_kept":32,"merged":[[1,1,5,4],[2,8,2,9],[3,8,3,9],[4,8,4,9],[6,1,6,4],[6,8,6,11],[15,1,15,4],[15,8,15,11],[25,1,25,4],[25,8,25,11]]}
["Šajā darblapā ievadiet budžetu un faktiskās izmaksas katrai kategorijai attiecīgajās tabulās. Šīs kolonnas šūnās ir noderīgi norādījumi par to, kā lietot šo darblapu. Bultiņa uz leju, lai sāktu darbu. "]
["Šīs darblapas nosaukums ir šūnā pa labi.","Brīvdienu budžets \nPlānotājs"]
["Brīvdienu budžets tiek automātiski aprēķināts šūnā K3.",{"$nulls":7},"BRĪVDIENU BUDŽETS",null,{"$f":"SUM(Dāvanas[Budžets],Iepakojums[Budžets],(Ceļojums[Budžets],(Maltītes[Budžets],(Izklaide[Budžets],Dažādi[Budžets]))))","v":{"v":750,"d":"750.00 EUR"}}]
["Faktiskās izmaksas tiek automātiski aprēķinātas šūnā K4.",{"$nulls":7},"FAKTISKIE TĒRIŅI",null,{"$f":"SUM((Dāvanas[Faktiskie],(Iepakojums[Faktiskie],(Ceļojums[Faktiskie],(Maltītes[Faktiskie],(Izklaide[Faktiskie],(Dažādi[Faktiskie])))))))","v":{"v":820,"d":"820.00 EUR"}}]
["Starpība tiek automātiski aprēķināta šūnā K5. Nākamais norādījums ir šūnā A7.",{"$nulls":7},"STARPĪBA (budžeta deficīts/pārpalikums)",null,{"$f":"SUM(K3-K4)","v":{"v":-70,"d":"70.00 EUR"}}]
[]
["Dāvanu etiķete ir šūnā pa labi un svētku maltītes etiķete ir šūnā I7.","Dāvanas",{"$nulls":6},"Svētku maltītes"]
["Tabulā ievadiet dāvanu izmaksas, sākot ar šūnu pa labi, un ievadiet maltītes izmaksas, sākot ar šūnu I8. Nākamais norādījums ir šūnā A16.","Vienums","Budžets","Faktiskie","Starpība",{"$nulls":3},"Vienums","Budžets","Faktiskie","Starpība"]
[null,"Ģimene",{"v":500,"d":"500.00 EUR"},{"v":495,"d":"495.00 EUR"},{"$f":"Dāvanas[[#This Row],[Budžets]]-Dāvanas[[#This Row],[Faktiskie]]","v":{"v":5,"d":"5.00 EUR"}},{"$nulls":3},"Pārtikas preces",null,null,{"$f":"Maltītes[[#This Row],[Budžets]]-Maltītes[[#This Row],[Faktiskie]]","v":{"v":0,"d":"0.00 EUR"}}]
[null,"Draugi",{"v":250,"d":"250.00 EUR"},{"v":325,"d":"325.00 EUR"},{"$f":"Dāvanas[[#This Row],[Budžets]]-Dāvanas[[#This Row],[Faktiskie]]","v":{"v":-75,"d":"-75.00 EUR"}},{"$nulls":3},"Dzērieni",null,null,{"$f":"Maltītes[[#This Row],[Budžets]]-Maltītes[[#This Row],[Faktiskie]]","v":{"v":0,"d":"0.00 EUR"}}]
[null,"Kolēģi",null,null,{"$f":"Dāvanas[[#This Row],[Budžets]]-Dāvanas[[#This Row],[Faktiskie]]","v":{"v":0,"d":"0.00 EUR"}},{"$nulls":3},"Dekorācijas",null,null,{"$f":"Maltītes[[#This Row],[Budžets]]-Maltītes[[#This Row],[Faktiskie]]","v":{"v":0,"d":"0.00 EUR"}}]
[null,"Skolotāji, auklītes, aukles utt.",null,null,{"$f":"Dāvanas[[#This Row],[Budžets]]-Dāvanas[[#This Row],[Faktiskie]]","v":{"v":0,"d":"0.00 EUR"}},{"$nulls":3},"Citi (cilne šīs rindas pēdējā kolonnā rindas pievienošanai)",null,null,{"$f":"Maltītes[[#This Row],[Budžets]]-Maltītes[[#This Row],[Faktiskie]]","v":{"v":0,"d":"0.00 EUR"}}]
[null,"Ziedojumi labdarībai",null,null,{"$f":"Dāvanas[[#This Row],[Budžets]]-Dāvanas[[#This Row],[Faktiskie]]","v":{"v":0,"d":"0.00 EUR"}},{"$nulls":3},"Kopā",{"$f":"SUBTOTAL(109,Maltītes[Budžets])","v":{"v":0,"d":"0.00 EUR"}},{"$f":"SUBTOTAL(109,Maltītes[Faktiskie])","v":{"v":0,"d":"0.00 EUR"}},{"$f":"SUBTOTAL(109,Maltītes[Starpība])","v":{"v":0,"d":"0.00 EUR"}}]
[null,"Citi (cilne šīs rindas pēdējā kolonnā rindas pievienošanai)",null,null,{"$f":"Dāvanas[[#This Row],[Budžets]]-Dāvanas[[#This Row],[Faktiskie]]","v":{"v":0,"d":"0.00 EUR"}}]
[null,"Kopā",{"$f":"SUBTOTAL(109,Dāvanas[Budžets])","v":{"v":750,"d":"750.00 EUR"}},{"$f":"SUBTOTAL(109,Dāvanas[Faktiskie])","v":{"v":820,"d":"820.00 EUR"}},{"$f":"SUBTOTAL(109,Dāvanas[Starpība])","v":{"v":-70,"d":"-70.00 EUR"}}]
["Iepakojuma etiķete ir šūnā pa labi un izklaides etiķete ir šūnā I16.","Iepakojums",{"$nulls":6},"Izklaide"]
["Tabulā ievadiet iepakojuma izmaksas, sākot ar šūnu pa labi, un ievadiet izklaides izmaksas, sākot ar šūnu I17. Nākamais norādījums ir šūnā A26.","Vienums","Budžets","Faktiskie","Starpība",{"$nulls":3},"Vienums","Budžets","Faktiskie","Starpība"]
[null,"Dāvanu iesaiņojums",null,null,{"$f":"Iepakojums[[#This Row],[Budžets]]-Iepakojums[[#This Row],[Faktiskie]]","v":{"v":0,"d":"0.00 EUR"}},{"$nulls":3},"Ballītes personāls (bārmenis, oficianti, apkopēji utt.)",null,null,{"$f":"Izklaide[[#This Row],[Budžets]]-Izklaide[[#This Row],[Faktiskie]]","v":{"v":0,"d":"0.00 EUR"}}]
[null,"Atzīmes",null,null,{"$f":"Iepakojums[[#This Row],[Budžets]]-Iepakojums[[#This Row],[Faktiskie]]","v":{"v":0,"d":"0.00 EUR"}},{"$nulls":3},"Dekorācijas",null,null,{"$f":"Izklaide[[#This Row],[Budžets]]-Izklaide[[#This Row],[Faktiskie]]","v":{"v":0,"d":"0.00 EUR"}}]
[null,"Materiāli (lentes, līmlente utt.)",null,null,{"$f":"Iepakojums[[#This Row],[Budžets]]-Iepakojums[[#This Row],[Faktiskie]]","v":{"v":0,"d":"0.00 EUR"}},{"$nulls":3},"Pārtika un dzērieni",null,null,{"$f":"Izklaide[[#This Row],[Budžets]]-Izklaide[[#This Row],[Faktiskie]]","v":{"v":0,"d":"0.00 EUR"}}]
[null,"Kārbas",null,null,{"$f":"Iepakojums[[#This Row],[Budžets]]-Iepakojums[[#This Row],[Faktiskie]]","v":{"v":0,"d":"0.00 EUR"}},{"$nulls":3},"Apģērbs",null,null,{"$f":"Izklaide[[#This Row],[Budžets]]-Izklaide[[#This Row],[Faktiskie]]","v":{"v":0,"d":"0.00 EUR"}}]
[null,"Pasta izdevumi",null,null,{"$f":"Iepakojums[[#This Row],[Budžets]]-Iepakojums[[#This Row],[Faktiskie]]","v":{"v":0,"d":"0.00 EUR"}},{"$nulls":3},"Biļetes",null,null,{"$f":"Izklaide[[#This Row],[Budžets]]-Izklaide[[#This Row],[Faktiskie]]","v":{"v":0,"d":"0.00 EUR"}}]
[null,"Citi (cilne šīs rindas pēdējā kolonnā rindas pievienošanai)",null,null,{"$f":"Iepakojums[[#This Row],[Budžets]]-Iepakojums[[#This Row],[Faktiskie]]","v":{"v":0,"d":"0.00 EUR"}},{"$nulls":3},"Vakariņas ārpus mājas",null,null,{"$f":"Izklaide[[#This Row],[Budžets]]-Izklaide[[#This Row],[Faktiskie]]","v":{"v":0,"d":"0.00 EUR"}}]
[null,"Kopā",{"$f":"SUBTOTAL(109,Iepakojums[Budžets])","v":{"v":0,"d":"0.00 EUR"}},{"$f":"SUBTOTAL(109,Iepakojums[Faktiskie])","v":{"v":0,"d":"0.00 EUR"}},{"$f":"SUBTOTAL(109,Iepakojums[Starpība])","v":{"v":0,"d":"0.00 EUR"}},{"$nulls":3},"Citi (cilne šīs rindas pēdējā kolonnā rindas pievienošanai)",null,null,{"$f":"Izklaide[[#This Row],[Budžets]]-Izklaide[[#This Row],[Faktiskie]]","v":{"v":0,"d":"0.00 EUR"}}]
[{"$nulls":8},"Kopā",{"$f":"SUBTOTAL(109,Izklaide[Budžets])","v":{"v":0,"d":"0.00 EUR"}},{"$f":"SUBTOTAL(109,Izklaide[Faktiskie])","v":{"v":0,"d":"0.00 EUR"}},{"$f":"SUBTOTAL(109,Izklaide[Starpība])","v":{"v":0,"d":"0.00 EUR"}}]
["Transporta etiķete ir šūnā pa labi un etiķete Dažādi ir šūnā I26.","Ceļojums",{"$nulls":6},"Dažādi"]
["Tabulā ievadiet transporta izmaksas, sākot ar šūnu pa labi, un ievadiet dažādās izmaksas, sākot ar šūnu I27.","Vienums","Budžets","Faktiskie","Starpība",{"$nulls":3},"Vienums","Budžets","Faktiskie","Starpība"]
[null,"Lidojums",null,null,{"$f":"Ceļojums[[#This Row],[Budžets]]-Ceļojums[[#This Row],[Faktiskie]]","v":{"v":0,"d":"0.00 EUR"}},{"$nulls":3},"Brīvdienu fotoattēli",null,null,{"$f":"Dažādi[[#This Row],[Budžets]]-Dažādi[[#This Row],[Faktiskie]]","v":{"v":0,"d":"0.00 EUR"}}]
[null,"Apmešanās",null,null,{"$f":"Ceļojums[[#This Row],[Budžets]]-Ceļojums[[#This Row],[Faktiskie]]","v":{"v":0,"d":"0.00 EUR"}},{"$nulls":3},"Degviela ",null,null,{"$f":"Dažādi[[#This Row],[Budžets]]-Dažādi[[#This Row],[Faktiskie]]","v":{"v":0,"d":"0.00 EUR"}}]
[null,"Transports",null,null,{"$f":"Ceļojums[[#This Row],[Budžets]]-Ceļojums[[#This Row],[Faktiskie]]","v":{"v":0,"d":"0.00 EUR"}},{"$nulls":3},"Citi (cilne šīs rindas pēdējā kolonnā rindas pievienošanai)",null,null,{"$f":"Dažādi[[#This Row],[Budžets]]-Dažādi[[#This Row],[Faktiskie]]","v":{"v":0,"d":"0.00 EUR"}}]
[null,"Citi (cilne šīs rindas pēdējā kolonnā rindas pievienošanai)",null,null,{"$f":"Ceļojums[[#This Row],[Budžets]]-Ceļojums[[#This Row],[Faktiskie]]","v":{"v":0,"d":"0.00 EUR"}},{"$nulls":3},"Kopā",{"$f":"SUBTOTAL(109,Dažādi[Budžets])","v":{"v":0,"d":"0.00 EUR"}},{"$f":"SUBTOTAL(109,Dažādi[Faktiskie])","v":{"v":0,"d":"0.00 EUR"}},{"$f":"SUBTOTAL(109,Dažādi[Starpība])","v":{"v":0,"d":"0.00 EUR"}}]
[null,"Kopā",{"$f":"SUBTOTAL(109,Ceļojums[Budžets])","v":{"v":0,"d":"0.00 EUR"}},{"$f":"SUBTOTAL(109,Ceļojums[Faktiskie])","v":{"v":0,"d":"0.00 EUR"}},{"$f":"SUBTOTAL(109,Ceļojums[Starpība])","v":{"v":0,"d":"0.00 EUR"}}]